bitfinex/quotes_BTCUSD_20250303
["timestamp","ask_amount","ask_price","bid_price","bid_amount"]
[1741026697740,0.226231,88405.0,88373.0,0.27536098]
[1741026697928,0.00039624,88420.0,88382.0,0.02473619]
[1741026698091,0.00039624,88420.0,88379.0,0.02473619]
[1741026698451,0.00039624,88420.0,88340.0,0.46908919]
[1741026698452,0.00039624,88420.0,88387.0,0.02473619]
[1741026698658,0.00039624,88420.0,88384.0,0.02473619]
[1741026698864,0.00039624,88420.0,88419.0,0.24593119]
[1741026699014,0.00039624,88420.0,88380.0,0.46908919]
[1741026699015,0.00039624,88420.0,88416.0,0.01973619]
[1741026699215,0.00039624,88420.0,88410.0,0.01973619]
[1741026699415,0.00039624,88420.0,88419.0,0.01973619]
[1741026699997,0.00039624,88420.0,88419.0,0.226195]
[1741026700203,0.00039624,88420.0,88419.0,0.01973619]
[1741026700401,0.00039624,88420.0,88408.0,0.01973619]
[1741026700603,0.00039624,88420.0,88404.0,0.01973619]
[1741026700828,0.00039624,88420.0,88405.0,0.01973619]
[1741026701235,0.00039624,88420.0,88386.0,0.01973619]
[1741026701436,0.226218,88410.0,88384.0,0.01973619]
[1741026701643,0.01454085,88415.0,88384.0,0.01973619]
[1741026701876,0.01454085,88418.0,88365.0,0.01973619]
[1741026702085,0.01454085,88418.0,88376.0,0.01973619]
[1741026702086,0.3,88413.0,88376.0,0.01973619]
[1741026702290,0.179396,88412.0,88371.0,0.01973619]
[1741026702520,0.226249,88398.0,88365.0,0.01973619]
[1741026702728,0.226249,88398.0,88345.0,0.226385]
[1741026702729,0.199688,88397.0,88345.0,0.01973619]
[1741026702953,0.199688,88397.0,88287.0,0.1798]
[1741026702954,0.01454085,88385.0,88320.0,0.46908919]
[1741026703157,0.3,88386.0,88321.0,0.0484938]
[1741026703370,0.2014,88396.0,88321.0,0.0484938]
[1741026703536,0.46908919,88390.0,88321.0,0.04690892]
[1741026703765,0.3,88389.0,88322.0,0.00158484]
[1741026703997,0.472604,88388.0,88301.0,0.30158485]
[1741026704246,0.472604,88388.0,88300.0,0.46908919]
[1741026704247,0.01454085,88370.0,88339.0,0.226398]
[1741026704468,0.226343,88362.0,88301.0,0.226498]
[1741026704706,0.01454085,88353.0,88302.0,0.09131574]
[1741026704940,0.01454085,88359.0,88302.0,0.08973072]
[1741026705193,0.452636,88372.0,88275.0,0.2005788]
[1741026705194,0.33939,88394.0,88310.0,0.46908919]
[1741026705402,0.46908919,88420.0,88331.0,0.3]
[1741026705615,0.0001694,88422.0,88351.0,0.3]
[1741026705820,0.0001694,88422.0,88370.0,0.46908919]
[1741026706047,0.0001694,88422.0,88332.0,0.27742892]
[1741026706048,0.00039599,88389.0,88332.0,0.27742892]
[1741026706261,0.00039599,88389.0,88332.0,0.07690892]
[1741026706494,0.00039599,88389.0,88333.0,0.00158438]
[1741026706710,0.00039599,88389.0,88372.0,0.226315]
[1741026706891,0.00039599,88389.0,88367.0,0.226328]
[1741026707105,0.00039599,88389.0,88276.0,0.17984]
[1741026707249,0.31454085,88379.0,88290.0,0.46908919]
[1741026707455,0.3,88339.0,88291.0,0.09237409]
[1741026707656,0.3,88339.0,88292.0,0.00158547]
[1741026707657,0.20028,88338.0,88292.0,0.00158547]
[1741026707853,0.3,88337.0,88263.0,0.3]
[1741026708037,0.00158547,88336.0,88264.0,0.00158544]
[1741026708557,0.226385,88345.0,88280.0,0.46908919]
[1741026708757,0.19976,88359.0,88281.0,0.04849405]
[1741026709030,0.3,88349.0,88287.0,0.226533]
[1741026709241,0.3,88349.0,88221.0,0.17984]
[1741026709242,0.76908919,88330.0,88279.0,0.226553]
[1741026709444,0.76908919,88330.0,88246.0,0.453276]
[1741026709445,0.3,88328.0,88280.0,0.00158584]
[1741026709614,0.00158547,88327.0,88296.0,0.226509]
[1741026709811,0.00158547,88349.0,88297.0,0.0226509]
[1741026710013,0.226439,88324.0,88264.0,0.00011891]
[1741026710217,0.30158547,88349.0,88264.0,0.00011891]
[1741026710218,0.00158547,88323.0,88290.0,0.226523]
[1741026710383,0.226481,88308.0,88264.0,0.00011891]
[1741026710583,0.226543,88284.0,88262.0,0.0003394]
[1741026710807,0.00158547,88283.0,88262.0,0.0003394]
[1741026711376,0.00158547,88303.0,88264.0,0.226591]
[1741026711551,0.00158547,88303.0,88264.0,0.02269304]
[1741026711764,0.00158547,88303.0,88262.0,0.00045831]
[1741026711765,0.00158547,88303.0,88265.0,0.00158602]
[1741026711967,1.10863353,88355.0,88262.0,0.00045831]
[1741026711968,0.46908919,88330.0,88262.0,0.00045831]
[1741026712169,0.00158547,88329.0,88326.0,0.226433]
[1741026712299,0.46908919,88336.0,88262.0,0.00045831]
[1741026712507,0.00158547,88335.0,88293.0,0.226516]
[1741026712704,0.30158547,88335.0,88263.0,0.03004583]
[1741026712904,0.46908919,88350.0,88264.0,0.00158555]
[1741026713110,0.00158547,88349.0,88281.0,0.3]
[1741026713315,0.46908919,88350.0,88282.0,0.00158496]
[1741026713536,0.3,88348.0,88271.0,0.0015852]
[1741026713893,0.21080039,88349.0,88271.0,0.0015852]
[1741026713894,0.226398,88340.0,88271.0,0.0015852]
[1741026714016,0.00198161,88339.0,88261.0,0.1538446]
[1741026714213,0.00198161,88339.0,88262.0,0.00079255]
[1741026714594,0.46908919,88330.0,88263.0,0.01546372]
[1741026714796,0.31652285,88329.0,88263.0,0.01546372]
[1741026714976,0.22573212,88307.0,88264.0,0.00079385]
[1741026715221,0.226493,88303.0,88231.0,0.0007939]
[1741026715385,0.19752,88322.0,88231.0,0.0007939]
[1741026715386,1.10863353,88382.0,88260.0,0.46908919]
[1741026715540,1.10863353,88382.0,88219.0,0.19752]
[1741026715541,0.46908919,88330.0,88261.0,0.00079252]
[1741026715740,0.3,88328.0,88233.0,0.0007936]
[1741026716077,0.19804,88359.0,88245.0,0.22664]
[1741026716078,0.226564,88276.0,88245.0,0.22664]
[1741026716338,0.2266,88261.0,88260.0,0.00011891]
[1741026716517,0.46908919,88270.0,88260.0,0.00011891]
[1741026716716,0.2266,88261.0,88260.0,0.00011891]
[1741026716895,0.69535383,88270.0,88260.0,0.00011891]
[1741026717096,0.3019833,88269.0,88260.0,0.00011891]
[1741026717295,0.46877583,88280.0,88260.0,0.00011891]
[1741026717497,0.0019831,88279.0,88260.0,0.00011891]
[1741026717722,0.226585,88267.0,88218.0,0.45253891]
[1741026717938,0.00198306,88266.0,88219.0,0.00079545]
[1741026718123,0.00198318,88279.0,88218.0,0.00039663]
[1741026718807,0.226226,88407.0,88362.0,0.226341]
[1741026719007,0.00118749,88406.0,88362.0,0.0226341]
[1741026719203,0.00118749,88406.0,88313.0,1.132328]
[1741026719204,0.034072,88391.0,88340.0,0.69517083]
[1741026719404,0.01185652,88373.0,88313.0,0.034059]
[1741026719783,0.17773049,88366.0,88291.0,0.00158469]
[1741026719968,1.66564321,88365.0,88293.0,0.339777]
[1741026720161,0.00012477,88341.0,88300.0,0.46779181]
[1741026720368,0.00012477,88341.0,88340.0,0.226398]
[1741026720502,0.00012477,88341.0,88331.0,0.226418]
[1741026720701,0.00012477,88341.0,88301.0,0.3]
[1741026720948,0.00012477,88341.0,88302.0,0.07836413]
[1741026721153,0.00012477,88341.0,88280.0,0.46779181]
[1741026721397,0.00012477,88341.0,88254.0,0.02964]
[1741026721398,0.01454085,88339.0,88270.0,0.46779181]
[1741026721589,0.01454085,88303.0,88199.0,0.03247727]
[1741026721784,0.3,88310.0,88199.0,0.03247727]
[1741026721785,0.3,88299.0,88227.0,0.034091]
[1741026721956,0.3,88299.0,88220.0,0.46779181]
[1741026721957,0.3,88295.0,88228.0,0.00158628]
[1741026722175,0.01454085,88292.0,88237.0,0.22666]
[1741026722515,0.226595,88263.0,88262.0,0.0003394]
[1741026722836,0.46779181,88300.0,88237.0,0.00039663]
[1741026722837,0.3,88299.0,88237.0,0.00039663]
[1741026723045,0.01454085,88277.0,88237.0,0.00039663]
[1741026723251,0.31454085,88275.0,88237.0,0.00039663]
[1741026723456,0.46779181,88280.0,88237.0,0.00039663]
[1741026723457,0.226659,88238.0,88237.0,0.00039663]
[1741026724075,0.46779181,88290.0,88237.0,0.00039663]
[1741026724282,0.27902967,88289.0,88237.0,0.00039663]
[1741026724483,0.3,88269.0,88237.0,0.00039663]
[1741026724681,0.526659,88238.0,88237.0,0.00039663]
[1741026724881,0.500732,88238.0,88193.0,0.0003388]
[1741026725141,0.2,88302.0,88193.0,0.0003388]
[1741026725142,0.00158667,88237.0,88217.0,0.226711]
[1741026725295,0.05692724,88322.0,88193.0,0.00045783]
[1741026725296,0.00158667,88269.0,88218.0,0.0226711]
[1741026725511,0.280955,88268.0,88211.0,0.00158681]
[1741026725712,0.280955,88268.0,88193.0,0.00045783]
[1741026725713,0.00158667,88267.0,88193.0,0.00045783]
[1741026726033,0.01454085,88240.0,88193.0,0.00045783]
[1741026726232,0.00158667,88239.0,88194.0,0.02272348]
[1741026726478,0.3,88250.0,88193.0,0.00045783]
[1741026726664,0.31454085,88237.0,88193.0,0.00045783]
[1741026726815,0.226758,88200.0,88193.0,0.00045783]
[1741026727018,0.01454085,88237.0,88193.0,0.00045783]
[1741026727019,0.00158667,88199.0,88193.0,0.00045783]
[1741026727217,0.00158667,88219.0,88193.0,0.00045783]
[1741026727456,0.526772,88194.0,88193.0,0.00045783]
[1741026727631,2.04191685,88194.0,88193.0,0.00045783]
[1741026727849,0.52679,88187.0,88186.0,0.01172193]
[1741026728064,0.36900085,88187.0,88186.0,0.011841]
[1741026728265,0.386852,88187.0,88186.0,0.011841]
[1741026728468,0.01958326,88194.0,88186.0,0.011841]
[1741026728677,0.22679,88187.0,88186.0,0.011841]
[1741026729082,0.24133085,88187.0,88186.0,0.011841]
[1741026729294,0.70119085,88187.0,88186.0,0.011841]
[1741026729495,0.54136485,88174.0,88173.0,0.0003392]
[1741026729833,0.54136985,88172.0,88171.0,4e-07]
[1741026729952,0.46779181,88183.0,88150.0,0.0005]
[1741026729953,0.226883,88151.0,88150.0,0.0005]
[1741026730159,0.226883,88151.0,88150.0,0.00061886]
[1741026730362,0.990948,88151.0,88150.0,0.00061886]
[1741026730566,0.990948,88151.0,88048.0,0.454294]
[1741026730567,0.01454085,88149.0,88104.0,0.0003392]
[1741026730854,0.46779181,88130.0,88104.0,0.0003392]
[1741026731352,0.46779181,88140.0,88104.0,0.0003392]
[1741026731606,0.01951743,88151.0,88150.0,0.226885]
[1741026731804,0.01951743,88151.0,88104.0,0.0003392]
[1741026731805,1.05579583,88229.0,88151.0,0.226881]
[1741026732020,0.46779181,88200.0,88155.0,0.226871]
[1741026732190,0.46779181,88180.0,88152.0,0.0226881]
[1741026732489,0.46779181,88200.0,88139.0,0.00158827]
[1741026732717,0.46779181,88200.0,88079.0,0.1]
[1741026732718,0.3,88179.0,88061.0,0.1]
[1741026732833,0.01454085,88168.0,88090.0,0.44013101]
[1741026733032,0.3,88166.0,88091.0,0.04576065]
[1741026733232,0.09397605,88169.0,88091.0,0.04576065]
[1741026733455,0.226876,88154.0,88118.0,0.226968]
[1741026733661,0.09397605,88169.0,88119.0,0.00158854]
[1741026733977,0.46779181,88150.0,88081.0,0.00158867]
[1741026734154,0.09397605,88169.0,88104.0,0.0003396]
[1741026734155,0.01454085,88148.0,88104.0,0.0003396]
[1741026734359,0.3,88148.0,88104.0,0.0003396]
[1741026734563,0.3,88145.0,88105.0,0.00158881]
[1741026734931,0.3,88145.0,88104.0,0.0003396]
[1741026735143,0.226952,88125.0,88104.0,0.0003396]
[1741026735365,0.46779181,88150.0,88104.0,0.0003396]
[1741026735783,0.1802,88166.0,88104.0,0.0003396]
[1741026735984,0.1802,88166.0,88105.0,0.00158841]
[1741026736115,0.1802,88166.0,88123.0,0.226954]
[1741026736316,0.18031844,88166.0,88108.0,0.226993]
[1741026736522,0.18031844,88166.0,88109.0,0.02273326]
[1741026736900,0.226927,88134.0,88104.0,0.0003396]
[1741026737103,0.01454085,88128.0,88104.0,0.0003396]
[1741026737475,0.3,88126.0,88104.0,0.0003396]
[1741026737677,0.46779181,88150.0,88104.0,0.0003396]
[1741026737882,0.32602,88149.0,88065.0,0.227104]
[1741026738088,0.3,88148.0,88099.0,0.227016]
[1741026738292,0.01454085,88110.0,88050.0,0.46779181]
[1741026738492,0.46779181,88130.0,88099.0,0.00039702]
[1741026738666,0.226983,88113.0,88099.0,0.00039702]
[1741026738868,0.01454085,88112.0,88099.0,0.00039702]
[1741026739099,0.01454085,88126.0,88099.0,0.00039702]
[1741026739273,0.46779181,88130.0,88099.0,0.00039702]
[1741026739274,0.31454085,88124.0,88099.0,0.00039702]
[1741026739619,0.54155485,88100.0,88099.0,0.00039702]
[1741026739761,0.54155485,88100.0,88042.0,0.046543]
[1741026739762,0.01454085,88099.0,88042.0,0.046543]
[1741026739958,0.01454085,88099.0,88057.0,0.00045893]
[1741026739959,0.227048,88087.0,88057.0,0.00045893]
[1741026740158,0.3,88089.0,88057.0,0.00045893]
[1741026740403,0.46779181,88090.0,88057.0,0.00045893]
[1741026740603,0.227063,88082.0,88058.0,0.02275909]
[1741026740824,0.24161085,88079.0,88057.0,0.00045893]
[1741026741027,0.01277256,88097.0,88057.0,0.00045893]
[1741026741229,0.1,88068.0,87990.0,0.21668]
[1741026741448,0.227104,88065.0,88030.0,0.227193]
[1741026741623,0.01454085,88063.0,88031.0,0.0227193]
[1741026741798,0.1,88059.0,88022.0,0.227214]
[1741026742004,0.11454085,88041.0,88010.0,0.0003394]
[1741026742199,0.1,88031.0,88010.0,0.0003394]
[1741026742425,0.1,88026.0,88010.0,0.0003394]
[1741026742621,0.00158989,88025.0,88010.0,0.00073583]
[1741026743043,0.00158989,88025.0,87960.0,0.00159104]
[1741026743044,0.1,88016.0,87960.0,0.00159104]
[1741026743267,0.227267,88002.0,87959.0,0.227377]
[1741026743460,0.11454085,87997.0,87934.0,0.341163]
[1741026743639,0.46779181,88010.0,87950.0,0.00011896]
[1741026743640,0.1,87994.0,87950.0,0.00011896]
[1741026743843,0.01454085,87988.0,87951.0,0.0227522]
[1741026744050,0.1,87978.0,87950.0,0.00011896]
[1741026744232,0.1,87962.0,87950.0,0.00011896]
[1741026744427,0.00158989,87961.0,87950.0,0.00011896]
[1741026744632,0.1,87964.0,87950.0,0.00011896]
[1741026744833,0.3,87982.0,87950.0,0.00011896]
[1741026744834,0.34193985,87951.0,87950.0,0.00011896]
[1741026745141,0.1,87938.0,87880.0,0.46779181]
[1741026745317,0.01454085,87931.0,87881.0,0.08594033]
[1741026745523,0.00158989,87936.0,87881.0,0.00159245]
[1741026745743,0.1,87934.0,87921.0,0.00017]
[1741026745942,0.00158989,87933.0,87921.0,0.00017]
[1741026746163,0.1,87943.0,87921.0,0.00017]
[1741026746363,0.01454085,87941.0,87921.0,0.00017]
[1741026746652,0.00158989,87940.0,87921.0,0.00017]
[1741026746999,0.01454085,87932.0,87921.0,0.00056595]
[1741026747206,0.01454085,87923.0,87921.0,0.00056595]
[1741026747379,0.34330388,87922.0,87921.0,0.00056595]
[1741026747595,0.09969914,87896.0,87830.0,0.45344271]
[1741026747809,0.01653236,87895.0,87862.0,0.227629]
[1741026748089,0.09969914,87910.0,87863.0,0.00079999]
[1741026748227,0.00199123,87909.0,87864.0,0.00079955]
[1741026748433,0.00199108,87924.0,87870.0,0.46779181]
[1741026748637,0.00199087,87934.0,87891.0,0.3]
[1741026748833,0.46779181,87980.0,87911.0,0.3]
[1741026749077,0.21476,87996.0,87912.0,0.00079666]
[1741026749282,0.09969914,87985.0,87913.0,0.07685885]
[1741026749455,0.09969914,87977.0,87914.0,0.00079659]
[1741026749659,0.09969914,87973.0,87914.0,0.30079659]
[1741026749887,0.09969914,87950.0,87913.0,0.07685885]
[1741026750090,0.00199027,87949.0,87914.0,0.00079762]
[1741026750264,0.00199008,87957.0,87891.0,0.30079725]
[1741026750482,0.09969914,87959.0,87899.0,0.455066]
[1741026750682,0.09969914,87947.0,87900.0,0.0007973]
[1741026750880,0.3,87971.0,87890.0,0.46779181]
[1741026750881,0.00199034,87959.0,87901.0,0.00079776]
[1741026751088,0.09969914,87982.0,87911.0,0.3]
[1741026751284,0.09969914,87976.0,87912.0,0.07757535]
[1741026751488,0.00198968,87975.0,87912.0,0.07757535]
[1741026751750,0.09969914,87959.0,87912.0,0.07757535]
[1741026751882,0.09969914,87944.0,87890.0,0.46779181]
[1741026752257,0.32709114,87954.0,87891.0,0.00079791]
[1741026752390,0.01454085,87946.0,87891.0,0.00079791]
[1741026752587,0.09969914,87942.0,87891.0,0.00079791]
[1741026752819,0.24197885,87936.0,87891.0,0.00079791]
[1741026753036,0.01454085,87927.0,87873.0,0.00079821]
[1741026753209,0.03436685,87936.0,87873.0,0.00079821]
[1741026753210,0.09969914,87915.0,87873.0,0.00079821]
[1741026753417,0.10169021,87914.0,87873.0,0.00079821]
[1741026753735,0.09969914,87912.0,87851.0,0.00079929]
[1741026753915,0.00199112,87911.0,87851.0,0.00079929]
[1741026754179,0.09969914,87924.0,87852.0,0.04685911]
[1741026754352,0.09969914,87922.0,87853.0,0.00079911]
[1741026754549,0.09969914,87917.0,87854.0,0.054969]
[1741026754748,0.09969914,87910.0,87857.0,0.341463]
[1741026754949,0.09969914,87910.0,87849.0,0.03424]
[1741026754950,0.09969914,87901.0,87770.0,0.05641167]
[1741026755211,0.09969914,87820.0,87762.0,0.7]
[1741026755447,0.3,87842.0,87742.0,0.034278]
[1741026755448,0.46779181,87780.0,87742.0,0.034278]
[1741026755752,0.09969914,87759.0,87745.0,0.0097341]
[1741026755923,0.00199472,87758.0,87745.0,0.0097341]
[1741026756138,0.10169386,87779.0,87745.0,0.01013215]
[1741026756283,0.09969914,87768.0,87745.0,0.01013215]
[1741026756640,0.46779181,87755.0,87745.0,0.0071967]
[1741026756829,0.32762914,87746.0,87745.0,0.0071967]
[1741026757236,0.09969914,87722.0,87657.0,0.0132641]
[1741026757435,0.09969914,87713.0,87686.0,0.228085]
[1741026757761,0.09969914,87702.0,87657.0,0.0132641]
[1741026757985,0.09969914,87711.0,87687.0,0.0032036]
[1741026758173,0.3,87744.0,87657.0,0.00026408]
[1741026758174,0.00199559,87716.0,87709.0,0.228026]
[1741026758371,0.05786471,87798.0,87657.0,0.00026408]
[1741026758372,0.00199522,87735.0,87657.0,0.00026408]
[1741026758532,0.3,87719.0,87710.0,0.00288271]
[1741026758736,0.228082,87688.0,87657.0,0.00026408]
[1741026758957,1.28544516,87718.0,87650.0,0.0005]
[1741026758958,0.09969914,87672.0,87650.0,0.0005]
[1741026759157,0.3,87686.0,87650.0,0.0005]
[1741026759158,0.09969914,87663.0,87650.0,0.0005]
[1741026759374,0.00199686,87685.0,87650.0,0.0005]
[1741026759533,0.004577,87705.0,87651.0,0.228177]
[1741026759737,0.004577,87705.0,87652.0,0.0229177]
[1741026759937,0.09969914,87725.0,87661.0,0.3]
[1741026760171,0.09969914,87710.0,87652.0,0.00267598]
[1741026760427,0.46779181,87690.0,87650.0,0.00089519]
[1741026760551,0.09969914,87696.0,87650.0,0.00089519]
[1741026760755,0.00199599,87704.0,87650.0,0.00089519]
[1741026760958,0.09969914,87719.0,87652.0,0.3]
[1741026761158,0.21808,87739.0,87650.0,0.00089519]
[1741026761159,0.09969914,87691.0,87650.0,0.00089519]
[1741026761357,0.0019961,87691.0,87653.0,0.00249027]
[1741026761720,0.00199606,87702.0,87654.0,0.00249027]
[1741026761954,0.0019957,87719.0,87654.0,0.00249027]
[1741026762157,0.09969914,87722.0,87650.0,0.468687]
[1741026762353,0.09969914,87708.0,87651.0,0.0473763]
[1741026762498,0.00199571,87707.0,87651.0,0.04986657]
[1741026762695,0.09969914,87709.0,87652.0,0.45635]
[1741026762938,0.09969914,87697.0,87651.0,0.04986657]
[1741026763160,0.09969914,87713.0,87653.0,0.00261557]
[1741026763334,0.00199561,87729.0,87653.0,0.00261557]
[1741026763539,0.00199561,87729.0,87650.0,0.00089519]
[1741026763540,0.00199532,87729.0,87713.0,0.228014]
[1741026763702,0.09969914,87724.0,87676.0,0.3]
[1741026763902,0.00199532,87723.0,87714.0,0.00261557]
[1741026764154,0.00199532,87723.0,87677.0,0.03]
[1741026764155,0.09969914,87739.0,87680.0,0.46779181]
[1741026764469,0.09969914,87743.0,87681.0,0.3]
[1741026764608,0.09969914,87728.0,87681.0,0.00261557]
[1741026764804,0.09969914,87737.0,87681.0,0.00261557]
[1741026765031,0.09969914,87732.0,87705.0,0.228036]
[1741026765229,0.09969914,87732.0,87680.0,0.00039519]
[1741026765230,0.32771514,87713.0,87706.0,0.00261557]
[1741026765462,0.09969914,87702.0,87680.0,0.00039519]
[1741026765694,0.0019958,87701.0,87680.0,0.00039519]
[1741026765829,0.09969914,87697.0,87680.0,0.00039519]
[1741026766046,0.09969914,87681.0,87680.0,0.00039519]
[1741026766735,0.11423999,87684.0,87680.0,0.00039519]
[1741026766949,0.32779814,87681.0,87680.0,0.00039519]
[1741026767064,0.51335999,87681.0,87680.0,0.00039519]
[1741026767268,0.09969914,87651.0,87643.0,0.00022808]
[1741026767516,0.09969914,87660.0,87643.0,0.00022808]
[1741026767719,0.46779181,87690.0,87649.0,0.228182]
[1741026768034,0.09969914,87678.0,87651.0,0.0229182]
[1741026768190,0.09969914,87697.0,87643.0,0.00022808]
[1741026768391,0.09969914,87701.0,87631.0,0.3]
[1741026768590,0.2172,87714.0,87631.0,0.3]
[1741026768591,0.00199586,87713.0,87653.0,0.3]
[1741026768788,0.09969914,87721.0,87651.0,0.3]
[1741026769090,0.0019954,87739.0,87670.0,0.46779181]
[1741026769285,0.46779181,87740.0,87630.0,0.1]
[1741026769566,0.21696,87750.0,87614.0,0.18108]
[1741026769567,0.32773014,87708.0,87675.0,0.228115]
[1741026769766,0.01454085,87701.0,87640.0,0.46779181]
[1741026770058,0.09969914,87690.0,87631.0,0.01]
[1741026770244,0.09969914,87687.0,87632.0,0.04777918]
[1741026770458,0.3,87709.0,87633.0,0.00159713]
[1741026770672,0.00198561,87708.0,87660.0,0.228151]
[1741026770910,0.46779181,87670.0,87640.0,0.0001713]
[1741026771109,0.00198561,87669.0,87640.0,0.0001713]
[1741026771238,0.3,87668.0,87640.0,0.0001713]
[1741026771436,0.46779181,87670.0,87640.0,0.0001713]
[1741026771437,0.228203,87641.0,87640.0,0.0001713]
[1741026771768,0.456227,87676.0,87572.0,0.21716]
[1741026771769,0.46779181,87650.0,87576.0,0.228371]
[1741026773556,0.01064938,87511.0,87510.0,0.22858748]
[1741026774062,0.46779181,87540.0,87500.0,0.07213385]
[1741026774307,0.46779181,87540.0,87501.0,0.00898367]
[1741026774544,0.46779181,87520.0,87500.0,0.07213385]
[1741026774963,0.46779181,87540.0,87500.0,0.07213385]
[1741026775180,0.034387,87557.0,87543.0,0.228457]
[1741026775367,1.28983353,87599.0,87501.0,0.00898367]
[1741026775368,0.00039185,87540.0,87501.0,0.00898367]
[1741026775806,0.228523,87519.0,87500.0,0.07213385]
[1741026776010,0.46779181,87520.0,87500.0,0.07213385]
[1741026776762,0.46779181,87520.0,87509.0,0.228547]
[1741026776971,0.46779181,87520.0,87500.0,0.07213385]
[1741026777172,0.46779181,87520.0,87510.0,0.00302516]
[1741026777376,0.00039185,87540.0,87500.0,0.07213385]
[1741026777578,0.00039185,87540.0,87528.0,0.228498]
[1741026777785,0.00039185,87540.0,87500.0,0.07164608]
[1741026777980,0.00039185,87540.0,87529.0,0.00328713]
[1741026778183,0.00039185,87540.0,87501.0,0.01053428]
[1741026778184,0.00039185,87540.0,87539.0,0.228469]
[1741026778394,0.00039185,87540.0,87530.0,0.00317996]
[1741026778621,0.00039185,87540.0,87539.0,0.228469]
[1741026778824,0.00039185,87540.0,87502.0,0.00982838]
[1741026778984,0.00039185,87540.0,87503.0,0.00159928]
[1741026779185,0.00039185,87540.0,87511.0,0.25]
[1741026779431,0.00039185,87540.0,87512.0,0.00159917]
[1741026779945,8.5e-07,87540.0,87539.0,0.22837452]
[1741026780310,8.5e-07,87540.0,87530.0,0.22849]
[1741026780311,8.5e-07,87540.0,87500.0,0.07164608]
[1741026780532,8.5e-07,87540.0,87539.0,0.228469]
[1741026781128,0.03436,87620.0,87570.0,0.46779181]
[1741026781371,0.46779181,87680.0,87590.0,0.46779181]
[1741026781550,1.10863353,87706.0,87571.0,0.30159786]
[1741026781551,0.46779181,87690.0,87611.0,0.3]
[1741026781701,0.18144,87709.0,87612.0,0.00159729]
[1741026781702,0.034339,87673.0,87612.0,0.00159729]
[1741026781908,0.01217738,87703.0,87612.0,0.00159729]
[1741026782112,0.01217738,87703.0,87650.0,0.46779181]
[1741026782343,0.0003426,87732.0,87690.0,0.46779181]
[1741026782507,0.0003426,87732.0,87691.0,0.30159624]
[1741026782702,0.0003426,87732.0,87690.0,0.46779181]
[1741026782959,0.00073541,87732.0,87691.0,0.00159596]
[1741026783166,0.228002,87719.0,87684.0,0.228089]
[1741026783391,0.228002,87719.0,87651.0,0.0304699]
[1741026783392,0.00073541,87732.0,87651.0,0.0304699]
[1741026783541,0.00073541,87732.0,87652.0,0.00159656]
[1741026783744,0.46779181,87730.0,87652.0,0.00159656]
[1741026783952,0.46779181,87710.0,87652.0,0.00159656]
[1741026784146,0.46779181,87710.0,87610.0,0.46779181]
[1741026784147,0.3,87681.0,87614.0,0.00159683]
[1741026784353,0.2846,87680.0,87614.0,0.00159683]
[1741026784568,1.77013818,87689.0,87597.0,0.034335]
[1741026784777,1.77013818,87689.0,87581.0,0.18144]
[1741026784778,0.46779181,87670.0,87598.0,0.00159758]
[1741026784987,0.04677918,87689.0,87600.0,0.46779181]
[1741026785190,0.154039,87688.0,87601.0,0.00159745]
[1741026785368,0.00039233,87670.0,87602.0,0.04693893]
[1741026785571,0.117094,87669.0,87604.0,0.2283]
[1741026785774,0.172042,87668.0,87605.0,0.00159758]
[1741026785972,0.228323,87596.0,87571.0,0.00159769]
[1741026786198,0.46779181,87630.0,87530.0,0.46779181]
[1741026786401,0.51457099,87630.0,87540.0,0.00159854]
[1741026786581,0.297868,87629.0,87540.0,0.00159854]
[1741026786776,0.46779181,87610.0,87517.0,0.02713584]
[1741026786990,0.00159854,87609.0,87510.0,0.46779181]
[1741026787195,0.00159854,87609.0,87500.0,0.17164608]
[1741026787196,0.46779181,87590.0,87511.0,0.04837796]
[1741026787394,0.46779181,87590.0,87511.0,0.00159878]
[1741026787395,0.00159854,87589.0,87511.0,0.00159878]
[1741026787714,0.00159854,87589.0,87520.0,0.46779181]
[1741026787914,0.46779181,87620.0,87522.0,0.228513]
[1741026787915,0.228318,87598.0,87522.0,0.228513]
[1741026788117,0.034366,87629.0,87509.0,0.0001708]
[1741026788118,0.29272054,87597.0,87523.0,0.00159857]
[1741026788278,0.01454085,87559.0,87509.0,0.0001708]
[1741026788483,0.19587454,87558.0,87509.0,0.00056265]
[1741026788699,0.3,87539.0,87509.0,0.00056265]
[1741026788904,0.228517,87521.0,87509.0,0.00056265]
[1741026789109,0.00159854,87520.0,87509.0,0.00056265]
[1741026789303,0.00159854,87539.0,87509.0,0.00056265]
[1741026789502,0.00159854,87559.0,87509.0,0.00056265]
[1741026790000,0.46779181,87600.0,87511.0,0.3]
[1741026790227,0.00159854,87599.0,87513.0,0.01454085]
[1741026790422,0.1814,87611.0,87531.0,0.3]
[1741026790582,0.1814,87611.0,87532.0,0.00159849]
[1741026790583,0.00159854,87610.0,87532.0,0.00159849]
[1741026790994,0.46939035,87610.0,87532.0,0.00159849]
[1741026791193,0.1814,87611.0,87532.0,0.00159849]
[1741026791194,0.1314,87611.0,87532.0,0.00159849]
[1741026791401,0.00159854,87610.0,87546.0,0.3]
[1741026791610,0.00159854,87610.0,87521.0,0.1]
[1741026791611,0.00159854,87628.0,87551.0,0.3]
[1741026791802,0.00159854,87628.0,87524.0,0.1]
[1741026791803,0.46779181,87660.0,87624.0,0.228247]
[1741026792060,0.00159854,87659.0,87625.0,0.00159771]
[1741026792262,0.03434,87667.0,87630.0,0.46779181]
[1741026792557,0.03434,87667.0,87666.0,0.228138]
[1741026792804,0.03473233,87667.0,87666.0,0.267766]
[1741026793114,3.3e-07,87667.0,87666.0,0.267766]
[1741026793346,0.034317,87726.0,87700.0,0.22805]
[1741026793583,6e-07,87701.0,87700.0,0.22805]
[1741026793833,6e-07,87701.0,87677.0,0.3]
[1741026794066,6e-07,87701.0,87700.0,0.22805]
[1741026794581,7e-05,87760.0,87700.0,0.76779181]
[1741026794780,0.00159854,87752.0,87701.0,0.00159559]
[1741026794973,7e-05,87760.0,87731.0,0.227969]
[1741026795655,0.00166854,87760.0,87731.0,0.227969]
[1741026795854,0.00159854,87759.0,87723.0,0.227989]
[1741026796030,7e-05,87760.0,87724.0,0.00159554]
[1741026796342,7e-05,87760.0,87731.0,0.227969]
[1741026796789,7e-05,87760.0,87731.0,0.027969]
[1741026796992,0.0003398,87768.0,87731.0,0.027969]
[1741026796993,0.0003398,87768.0,87759.0,0.227896]
[1741026797228,0.0003398,87768.0,87767.0,0.227876]
[1741026797358,0.0003398,87768.0,87733.0,0.004571]
[1741026797600,0.0003398,87768.0,87734.0,0.00159499]